[Event "Titled Tuesday Blitz March 08 Late 2022"]
[White "Djordjevic, Vuk"]
[Black "Jobava, Baadur"]
[WhiteFideId "902098"]
[BlackFideId "13601520"]
[WhiteElo "2463"]
[BlackElo "2617"]
[Result "1/2-1/2"]
[Round "03"]
[TimeControl "180+1"]
[Date "2022.03.08"]
[WhiteClock "0:00:05"]
[BlackClock "0:00:05"]

1. d4 {[%clk 0:03:00]}  d5 {[%clk 0:02:58]} 2. Bf4 {[%clk 0:02:59]}  c5 {[%clk 0:02:57]} 3. e3 {[%clk 0:02:59]}  Nc6 {[%clk 0:02:56]} 4. c3 {[%clk 0:02:59]}  cxd4 {[%clk 0:02:57]} 5. exd4 {[%clk 0:02:59]}  Nf6 {[%clk 0:02:57]} 6. Nd2 {[%clk 0:02:58]}  Bg4 {[%clk 0:02:57]} 7. Ngf3 {[%clk 0:02:58]}  e6 {[%clk 0:02:57]} 8. Bd3 {[%clk 0:02:58]}  Bd6 {[%clk 0:02:54]} 9. Bg5 {[%clk 0:02:55]}  h6 {[%clk 0:02:54]} 10. Bh4 {[%clk 0:02:54]}  g5 {[%clk 0:02:52]} 11. Bg3 {[%clk 0:02:55]}  Bxg3 {[%clk 0:02:52]} 12. hxg3 {[%clk 0:02:55]}  Qc7 {[%clk 0:02:50]} 13. Qa4 {[%clk 0:02:47]}  O-O-O {[%clk 0:02:48]} 14. Bb5 {[%clk 0:02:41]}  Bxf3 {[%clk 0:02:31]} 15. Nxf3 {[%clk 0:02:29]}  Nd7 {[%clk 0:02:21]} 16. Bxc6 {[%clk 0:02:18]}  bxc6 {[%clk 0:02:22]} 17. O-O {[%clk 0:02:17]}  g4 {[%clk 0:02:20]} 18. Nh4 {[%clk 0:02:12]}  Kb8 {[%clk 0:02:15]} 19. b4 {[%clk 0:02:06]}  Ka8 {[%clk 0:02:15]} 20. Qb3 {[%clk 0:02:00]}  Rb8 {[%clk 0:02:13]} 21. c4 {[%clk 0:01:55]}  dxc4 {[%clk 0:02:08]} 22. Qxc4 {[%clk 0:01:55]}  Nb6 {[%clk 0:02:09]} 23. Qe2 {[%clk 0:01:48]}  h5 {[%clk 0:02:08]} 24. a4 {[%clk 0:01:46]}  Rhd8 {[%clk 0:01:57]} 25. Qe4 {[%clk 0:01:39]}  Rd5 {[%clk 0:01:42]} 26. Rfc1 {[%clk 0:01:32]}  Qd6 {[%clk 0:01:42]} 27. b5 {[%clk 0:01:29]}  Rxd4 {[%clk 0:01:22]} 28. Qh7 {[%clk 0:01:24]}  c5 {[%clk 0:00:43]} 29. a5 {[%clk 0:01:09]}  Nd5 {[%clk 0:00:40]} 30. b6 {[%clk 0:01:08]}  Qe7 {[%clk 0:00:24]} 31. Qxh5 {[%clk 0:00:54]}  c4 {[%clk 0:00:18]} 32. Qe5 {[%clk 0:00:48]}  Qc5 {[%clk 0:00:17]} 33. Qg7 {[%clk 0:00:40]}  Rd2 {[%clk 0:00:11]} 34. Qxf7 {[%clk 0:00:37]}  Rb7 {[%clk 0:00:11]} 35. Qg8+ {[%clk 0:00:22]}  Rb8 {[%clk 0:00:11]} 36. b7+ {[%clk 0:00:21]}  Kxb7 {[%clk 0:00:11]} 37. Rab1+ {[%clk 0:00:22]}  Nb4 {[%clk 0:00:11]} 38. Qxe6 {[%clk 0:00:19]}  Ka8 {[%clk 0:00:12]} 39. Qe4+ {[%clk 0:00:18]}  Qd5 {[%clk 0:00:09]} 40. Qxg4 {[%clk 0:00:16]}  Nd3 {[%clk 0:00:06]} 41. Rxb8+ {[%clk 0:00:13]}  Kxb8 {[%clk 0:00:06]} 42. Rb1+ {[%clk 0:00:12]}  Kc7 {[%clk 0:00:06]} 43. Qg7+ {[%clk 0:00:12]}  Kd6 {[%clk 0:00:06]} 44. Qf6+ {[%clk 0:00:12]}  Kc5 {[%clk 0:00:06]} 45. Qe7+ {[%clk 0:00:09]}  Kc6 {[%clk 0:00:06]} 46. Qb7+ {[%clk 0:00:09]}  Kd6 {[%clk 0:00:07]} 47. Qb8+ {[%clk 0:00:08]}  Kc6 {[%clk 0:00:06]} 48. Qxa7 {[%clk 0:00:02]}  Rxf2 {[%clk 0:00:04]} 49. Rb6+ {[%clk 0:00:03]}  Kc5 {[%clk 0:00:04]} 50. Rf6+ {[%clk 0:00:02]}  Kb4 {[%clk 0:00:04]} 51. Rxf2 {[%clk 0:00:02]}  Nxf2 {[%clk 0:00:05]} 52. Qxf2 {[%clk 0:00:02]}  c3 {[%clk 0:00:05]} 53. Nf3 {[%clk 0:00:03]}  Qd1+ {[%clk 0:00:04]} 54. Ne1 {[%clk 0:00:03]}  c2 {[%clk 0:00:04]} 55. Qxc2 {[%clk 0:00:03]}  Qxe1+ {[%clk 0:00:05]} 56. Kh2 {[%clk 0:00:04]}  Kxa5 {[%clk 0:00:05]} 57. Qf5+ {[%clk 0:00:04]}  Kb6 {[%clk 0:00:04]} 58. Qf4 {[%clk 0:00:04]}  Qe6 {[%clk 0:00:03]} 59. g4 {[%clk 0:00:04]}  Qe7 {[%clk 0:00:02]} 60. Kg3 {[%clk 0:00:05]}  Qa3+ {[%clk 0:00:02]} 61. Qf3 {[%clk 0:00:05]}  Qe7 {[%clk 0:00:03]} 62. Qf2+ {[%clk 0:00:04]}  Kc6 {[%clk 0:00:02]} 63. Qc2+ {[%clk 0:00:05]}  Kd7 {[%clk 0:00:02]} 64. Qd3+ {[%clk 0:00:05]}  Ke8 {[%clk 0:00:02]} 65. Qg6+ {[%clk 0:00:06]}  Kf8 {[%clk 0:00:02]} 66. Qf5+ {[%clk 0:00:07]}  Kg7 {[%clk 0:00:02]} 67. Kf4 {[%clk 0:00:07]}  Qb4+ {[%clk 0:00:01]} 68. Qe4 {[%clk 0:00:07]}  Qd2+ {[%clk 0:00:02]} 69. Kg3 {[%clk 0:00:07]}  Qc3+ {[%clk 0:00:01]} 70. Kh4 {[%clk 0:00:07]}  Qc5 {[%clk 0:00:01]} 71. g5 {[%clk 0:00:07]}  Qd6 {[%clk 0:00:01]} 72. Kg4 {[%clk 0:00:07]}  Qd7+ {[%clk 0:00:02]} 73. Qf5 {[%clk 0:00:07]}  Qd4+ {[%clk 0:00:02]} 74. Qf4 {[%clk 0:00:07]}  Qd1+ {[%clk 0:00:03]} 75. Kg3 {[%clk 0:00:07]}  Qe1+ {[%clk 0:00:03]} 76. Qf2 {[%clk 0:00:06]}  Qe5+ {[%clk 0:00:03]} 77. Qf4 {[%clk 0:00:06]}  Qe1+ {[%clk 0:00:03]} 78. Kh3 {[%clk 0:00:04]}  Qh1+ {[%clk 0:00:03]} 79. Qh2 {[%clk 0:00:04]}  Qc1 {[%clk 0:00:02]} 80. Qe5+ {[%clk 0:00:04]}  Kg8 {[%clk 0:00:03]} 81. Qe6+ {[%clk 0:00:04]}  Kg7 {[%clk 0:00:03]} 82. Qf6+ {[%clk 0:00:05]}  Kg8 {[%clk 0:00:04]} 83. g6 {[%clk 0:00:05]}  Qh6+ {[%clk 0:00:04]} 84. Kg3 {[%clk 0:00:06]}  Qh2+ {[%clk 0:00:04]} 85. Kf3 {[%clk 0:00:04]}  Qxg2+ {[%clk 0:00:04]} 86. Kf4 {[%clk 0:00:03]}  Qf3+ {[%clk 0:00:03]} 87. Ke5 {[%clk 0:00:03]}  Qxf6+ {[%clk 0:00:04]} 88. Kxf6 {[%clk 0:00:03]}  Kf8 {[%clk 0:00:05]} 89. g7+ {[%clk 0:00:04]}  Kg8 {[%clk 0:00:05]} 90. Kg6 {[%clk 0:00:05]} 1/2-1/2


[Site "https://www.chess.com"]

[Event "Titled Tuesday Blitz March 08 Late 2022"]
[White "Dounis, Alexandros"]
[Black "Fedoseev, Vladimir"]
[WhiteFideId "4213238"]
[BlackFideId "24130737"]
[WhiteElo "2204"]
[BlackElo "2726"]
[Result "1-0"]
[Round "03"]
[TimeControl "180+1"]
[Date "2022.03.08"]
[WhiteClock "0:01:06"]
[BlackClock "0:00:42"]

1. Nf3 {[%clk 0:03:00]}  d5 {[%clk 0:02:54]} 2. g3 {[%clk 0:03:00]}  Nd7 {[%clk 0:02:53]} 3. Bg2 {[%clk 0:02:58]}  e5 {[%clk 0:02:52]} 4. d3 {[%clk 0:02:58]}  Ngf6 {[%clk 0:02:52]} 5. O-O {[%clk 0:02:58]}  Bd6 {[%clk 0:02:52]} 6. c4 {[%clk 0:02:57]}  c6 {[%clk 0:02:51]} 7. cxd5 {[%clk 0:02:55]}  cxd5 {[%clk 0:02:49]} 8. Nc3 {[%clk 0:02:55]}  O-O {[%clk 0:02:49]} 9. e4 {[%clk 0:02:56]}  d4 {[%clk 0:02:46]} 10. Nb5 {[%clk 0:02:50]}  Bb8 {[%clk 0:02:45]} 11. a4 {[%clk 0:02:47]}  a6 {[%clk 0:02:40]} 12. Na3 {[%clk 0:02:48]}  a5 {[%clk 0:02:41]} 13. Nb5 {[%clk 0:02:41]}  Nc5 {[%clk 0:02:39]} 14. b3 {[%clk 0:02:37]}  Be6 {[%clk 0:02:39]} 15. Rb1 {[%clk 0:02:35]}  h6 {[%clk 0:02:36]} 16. Ba3 {[%clk 0:02:36]}  Nfd7 {[%clk 0:02:35]} 17. Qc2 {[%clk 0:02:28]}  b6 {[%clk 0:02:35]} 18. Nd2 {[%clk 0:02:27]}  Qg5 {[%clk 0:02:32]} 19. Nc4 {[%clk 0:02:24]}  Rc8 {[%clk 0:02:31]} 20. Bc1 {[%clk 0:02:17]}  Qd8 {[%clk 0:02:28]} 21. f4 {[%clk 0:02:14]}  exf4 {[%clk 0:02:20]} 22. gxf4 {[%clk 0:02:11]}  f5 {[%clk 0:02:10]} 23. e5 {[%clk 0:02:10]}  Ra6 {[%clk 0:02:07]} 24. Nxd4 {[%clk 0:01:58]}  Nf8 {[%clk 0:02:04]} 25. Nc6 {[%clk 0:01:53]}  Qxd3 {[%clk 0:02:02]} 26. Qxd3 {[%clk 0:01:51]}  Nxd3 {[%clk 0:02:03]} 27. Ne7+ {[%clk 0:01:51]}  Kf7 {[%clk 0:02:01]} 28. Nxc8 {[%clk 0:01:51]}  Bxc8 {[%clk 0:02:00]} 29. Rd1 {[%clk 0:01:48]}  Nxc1 {[%clk 0:01:52]} 30. Rbxc1 {[%clk 0:01:48]}  Be6 {[%clk 0:01:51]} 31. Nd6+ {[%clk 0:01:46]}  Kg6 {[%clk 0:01:44]} 32. Bd5 {[%clk 0:01:44]}  Bxd5 {[%clk 0:01:43]} 33. Rxd5 {[%clk 0:01:45]}  Ne6 {[%clk 0:01:44]} 34. Rc8 {[%clk 0:01:39]}  Nxf4 {[%clk 0:01:43]} 35. Rb5 {[%clk 0:01:28]}  Ra8 {[%clk 0:01:35]} 36. Kf1 {[%clk 0:01:19]}  Ne6 {[%clk 0:01:30]} 37. Rxb6 {[%clk 0:01:15]}  Bc7 {[%clk 0:01:28]} 38. Rxa8 {[%clk 0:01:14]}  Bxb6 {[%clk 0:01:28]} 39. Ra6 {[%clk 0:01:14]}  Bd4 {[%clk 0:01:00]} 40. Nb5 {[%clk 0:01:11]}  Kf7 {[%clk 0:01:00]} 41. Rxe6 {[%clk 0:01:11]}  Kxe6 {[%clk 0:01:00]} 42. Nxd4+ {[%clk 0:01:11]}  Kxe5 {[%clk 0:01:00]} 43. Nc6+ {[%clk 0:01:12]}  Kd5 {[%clk 0:01:00]} 44. Nxa5 {[%clk 0:01:12]}  Kc5 {[%clk 0:01:00]} 45. Nb7+ {[%clk 0:01:11]}  Kb4 {[%clk 0:00:58]} 46. a5 {[%clk 0:01:11]}  Kb5 {[%clk 0:00:59]} 47. a6 {[%clk 0:01:12]}  Kxa6 {[%clk 0:00:58]} 48. Nd6 {[%clk 0:01:11]}  g6 {[%clk 0:00:54]} 49. Nf7 {[%clk 0:01:10]}  Kb5 {[%clk 0:00:53]} 50. Nxh6 {[%clk 0:01:09]}  Kb4 {[%clk 0:00:53]} 51. Kf2 {[%clk 0:01:08]}  Kxb3 {[%clk 0:00:53]} 52. Ng8 {[%clk 0:01:07]}  Kc4 {[%clk 0:00:54]} 53. Ne7 {[%clk 0:01:07]}  Kd4 {[%clk 0:00:40]} 54. Nxg6 {[%clk 0:01:07]}  Kd5 {[%clk 0:00:40]} 55. Kg3 {[%clk 0:01:07]}  Ke6 {[%clk 0:00:41]} 56. Kf4 {[%clk 0:01:06]}  Kf6 {[%clk 0:00:42]} 1-0


[Site "https://www.chess.com"]

[Event "Titled Tuesday Blitz March 08 Late 2022"]
[White "Erdogdu, Mert"]
[Black "Chernomordik, Pavel"]
[WhiteFideId "6301495"]
[BlackFideId "2804530"]
[WhiteElo "2692"]
[BlackElo "2460"]
[Result "1-0"]
[Round "03"]
[TimeControl "180+1"]
[Date "2022.03.09"]
[WhiteClock "0:00:36"]
[BlackClock "0:00:12"]

1. e4 {[%clk 0:03:00]}  g6 {[%clk 0:03:00]} 2. d4 {[%clk 0:03:00]}  Bg7 {[%clk 0:02:59]} 3. Nc3 {[%clk 0:03:00]}  d6 {[%clk 0:02:59]} 4. f4 {[%clk 0:02:57]}  a6 {[%clk 0:02:59]} 5. Nf3 {[%clk 0:02:49]}  b5 {[%clk 0:02:59]} 6. Bd3 {[%clk 0:02:47]}  Nd7 {[%clk 0:02:57]} 7. e5 {[%clk 0:02:47]}  c5 {[%clk 0:02:56]} 8. Be4 {[%clk 0:02:47]}  Rb8 {[%clk 0:02:51]} 9. Be3 {[%clk 0:02:40]}  b4 {[%clk 0:02:46]} 10. Na4 {[%clk 0:02:28]}  Qa5 {[%clk 0:02:36]} 11. b3 {[%clk 0:02:24]}  c4 {[%clk 0:02:23]} 12. Ng5 {[%clk 0:01:57]}  d5 {[%clk 0:02:06]} 13. Bf3 {[%clk 0:01:55]}  e6 {[%clk 0:02:06]} 14. O-O {[%clk 0:01:47]}  Ne7 {[%clk 0:02:05]} 15. g4 {[%clk 0:01:45]}  h6 {[%clk 0:01:51]} 16. Nh3 {[%clk 0:01:45]}  h5 {[%clk 0:01:48]} 17. gxh5 {[%clk 0:01:44]}  Nf5 {[%clk 0:01:47]} 18. Bf2 {[%clk 0:01:44]}  Nf8 {[%clk 0:01:30]} 19. Ng5 {[%clk 0:01:42]}  f6 {[%clk 0:01:04]} 20. exf6 {[%clk 0:01:40]}  Bxf6 {[%clk 0:01:03]} 21. hxg6 {[%clk 0:01:36]}  Qc7 {[%clk 0:00:51]} 22. Nf7 {[%clk 0:01:09]}  Qxf4 {[%clk 0:00:48]} 23. Nxh8 {[%clk 0:01:06]}  Bxh8 {[%clk 0:00:46]} 24. Bh5 {[%clk 0:00:44]}  Ke7 {[%clk 0:00:32]} 25. bxc4 {[%clk 0:00:36]}  dxc4 {[%clk 0:00:22]} 26. Nc5 {[%clk 0:00:36]}  Bb7 {[%clk 0:00:14]} 27. Nxb7 {[%clk 0:00:36]}  Rxb7 {[%clk 0:00:14]} 28. d5 {[%clk 0:00:36]}  Bxa1 {[%clk 0:00:12]} 29. Bc5+ {[%clk 0:00:36]} 1-0


[Site "https://www.chess.com"]

[Event "Titled Tuesday Blitz March 08 Late 2022"]
[White "Espinosa, Pedro"]
[Black "Vakhlamov, Igor L."]
[WhiteFideId "30921066"]
[BlackFideId "24126748"]
[WhiteElo "2481"]
[BlackElo "2782"]
[Result "0-1"]
[Round "03"]
[TimeControl "180+1"]
[Date "2022.03.09"]
[WhiteClock "0:00:04"]
[BlackClock "0:00:06"]

1. d4 {[%clk 0:03:00]}  d5 {[%clk 0:02:59]} 2. c4 {[%clk 0:03:00]}  e6 {[%clk 0:03:00]} 3. Nf3 {[%clk 0:03:00]}  Nf6 {[%clk 0:03:00]} 4. Nc3 {[%clk 0:02:59]}  Be7 {[%clk 0:02:53]} 5. Bf4 {[%clk 0:02:58]}  O-O {[%clk 0:02:49]} 6. e3 {[%clk 0:02:58]}  a6 {[%clk 0:02:43]} 7. c5 {[%clk 0:02:57]}  Ne4 {[%clk 0:02:40]} 8. Nxe4 {[%clk 0:02:54]}  dxe4 {[%clk 0:02:41]} 9. Nd2 {[%clk 0:02:55]}  f5 {[%clk 0:02:40]} 10. Bc4 {[%clk 0:02:52]}  b5 {[%clk 0:02:14]} 11. cxb6 {[%clk 0:02:44]}  cxb6 {[%clk 0:02:15]} 12. Qb3 {[%clk 0:02:43]}  Rf6 {[%clk 0:02:14]} 13. Bg5 {[%clk 0:02:37]}  Rg6 {[%clk 0:02:11]} 14. Bxe7 {[%clk 0:02:36]}  Qxe7 {[%clk 0:02:12]} 15. g3 {[%clk 0:02:24]}  b5 {[%clk 0:02:08]} 16. Be2 {[%clk 0:02:24]}  Nc6 {[%clk 0:02:06]} 17. a4 {[%clk 0:02:18]}  Na5 {[%clk 0:01:52]} 18. Qc3 {[%clk 0:02:18]}  b4 {[%clk 0:01:51]} 19. Qc2 {[%clk 0:02:11]}  Bb7 {[%clk 0:01:50]} 20. Nc4 {[%clk 0:02:11]}  Nxc4 {[%clk 0:01:49]} 21. Bxc4 {[%clk 0:02:05]}  Rf6 {[%clk 0:01:45]} 22. b3 {[%clk 0:02:01]}  Rc8 {[%clk 0:01:39]} 23. Qe2 {[%clk 0:01:59]}  a5 {[%clk 0:01:39]} 24. O-O {[%clk 0:01:58]}  g5 {[%clk 0:01:39]} 25. Rac1 {[%clk 0:01:53]}  Kg7 {[%clk 0:01:38]} 26. Ba6 {[%clk 0:01:50]}  Rxc1 {[%clk 0:01:28]} 27. Rxc1 {[%clk 0:01:48]}  Bd5 {[%clk 0:01:27]} 28. Qb5 {[%clk 0:01:33]}  f4 {[%clk 0:01:25]} 29. Qxa5 {[%clk 0:01:32]}  Rf7 {[%clk 0:01:25]} 30. exf4 {[%clk 0:01:13]}  gxf4 {[%clk 0:01:26]} 31. Qc5 {[%clk 0:01:13]}  Qf6 {[%clk 0:01:24]} 32. Rf1 {[%clk 0:01:06]}  Qg5 {[%clk 0:00:44]} 33. Qd6 {[%clk 0:00:56]}  Bxb3 {[%clk 0:00:24]} 34. Qxb4 {[%clk 0:00:51]}  Bd5 {[%clk 0:00:21]} 35. Qd6 {[%clk 0:00:50]}  Rf5 {[%clk 0:00:22]} 36. Bb5 {[%clk 0:00:28]}  Kh6 {[%clk 0:00:17]} 37. Be2 {[%clk 0:00:17]}  f3 {[%clk 0:00:15]} 38. Bb5 {[%clk 0:00:14]}  e3 {[%clk 0:00:14]} 39. h4 {[%clk 0:00:14]}  Qg4 {[%clk 0:00:11]} 40. fxe3 {[%clk 0:00:11]}  f2+ {[%clk 0:00:04]} 41. Rxf2 {[%clk 0:00:11]}  Qe4 {[%clk 0:00:04]} 42. Kf1 {[%clk 0:00:06]}  Qb1+ {[%clk 0:00:04]} 43. Ke2 {[%clk 0:00:03]}  Qc2+ {[%clk 0:00:04]} 44. Ke1 {[%clk 0:00:03]}  Qxf2+ {[%clk 0:00:04]} 45. Kd1 {[%clk 0:00:04]}  Bb3+ {[%clk 0:00:05]} 46. Kc1 {[%clk 0:00:04]}  Qc2# {[%clk 0:00:06]} 0-1


[Site "https://www.chess.com"]

[Event "Titled Tuesday Blitz March 08 Late 2022"]
[White "Gadimbayli, Abdulla"]
[Black "Bortnyk, Olexandr"]
[WhiteFideId "13404938"]
[BlackFideId "14120828"]
[WhiteElo "2311"]
[BlackElo "2723"]
[Result "0-1"]
[Round "03"]
[TimeControl "180+1"]
[Date "2022.03.08"]
[WhiteClock "0:00:01"]
[BlackClock "0:00:04"]

1. e4 {[%clk 0:03:00]}  Nf6 {[%clk 0:02:56]} 2. e5 {[%clk 0:02:56]}  Nd5 {[%clk 0:02:56]} 3. d4 {[%clk 0:02:57]}  d6 {[%clk 0:02:57]} 4. exd6 {[%clk 0:02:57]}  exd6 {[%clk 0:02:56]} 5. Nf3 {[%clk 0:02:58]}  Be7 {[%clk 0:02:56]} 6. Bd3 {[%clk 0:02:59]}  O-O {[%clk 0:02:55]} 7. O-O {[%clk 0:02:59]}  Nb6 {[%clk 0:02:56]} 8. h3 {[%clk 0:02:59]}  c5 {[%clk 0:02:56]} 9. c3 {[%clk 0:02:59]}  Nc6 {[%clk 0:02:56]} 10. Nbd2 {[%clk 0:02:56]}  cxd4 {[%clk 0:02:55]} 11. cxd4 {[%clk 0:02:57]}  d5 {[%clk 0:02:53]} 12. Re1 {[%clk 0:02:52]}  Be6 {[%clk 0:02:46]} 13. Nb3 {[%clk 0:02:51]}  Nd7 {[%clk 0:02:41]} 14. Bf4 {[%clk 0:02:44]}  Qb6 {[%clk 0:02:37]} 15. Rc1 {[%clk 0:02:35]}  a5 {[%clk 0:02:35]} 16. Bg5 {[%clk 0:02:00]}  Bb4 {[%clk 0:02:24]} 17. Bd2 {[%clk 0:01:57]}  a4 {[%clk 0:02:21]} 18. Ng5 {[%clk 0:01:24]}  h6 {[%clk 0:01:55]} 19. Nxe6 {[%clk 0:01:09]}  fxe6 {[%clk 0:01:54]} 20. Bxb4 {[%clk 0:01:03]}  Qxb4 {[%clk 0:01:55]} 21. Qg4 {[%clk 0:00:20]}  axb3 {[%clk 0:01:50]} 22. Qxe6+ {[%clk 0:00:20]}  Rf7 {[%clk 0:01:50]} 23. Bg6 {[%clk 0:00:20]}  Rf8 {[%clk 0:01:50]} 24. Bxf7+ {[%clk 0:00:20]}  Rxf7 {[%clk 0:01:49]} 25. Qxd5 {[%clk 0:00:20]}  Qxd4 {[%clk 0:01:44]} 26. Qxd4 {[%clk 0:00:12]}  Nxd4 {[%clk 0:01:44]} 27. Rcd1 {[%clk 0:00:13]}  Nc6 {[%clk 0:01:18]} 28. axb3 {[%clk 0:00:13]}  Kf8 {[%clk 0:01:11]} 29. Re3 {[%clk 0:00:13]}  Nc5 {[%clk 0:01:02]} 30. Rd5 {[%clk 0:00:12]}  Na6 {[%clk 0:01:02]} 31. Rd6 {[%clk 0:00:09]}  Nab4 {[%clk 0:00:57]} 32. g4 {[%clk 0:00:08]}  Rc7 {[%clk 0:00:50]} 33. Kg2 {[%clk 0:00:08]}  Ne7 {[%clk 0:00:47]} 34. Rd8+ {[%clk 0:00:08]}  Kf7 {[%clk 0:00:47]} 35. Rf3+ {[%clk 0:00:08]}  Kg6 {[%clk 0:00:47]} 36. Rd6+ {[%clk 0:00:08]}  Kh7 {[%clk 0:00:48]} 37. Rf7 {[%clk 0:00:09]}  Kg8 {[%clk 0:00:45]} 38. Rf3 {[%clk 0:00:08]}  Nbc6 {[%clk 0:00:43]} 39. Rfd3 {[%clk 0:00:07]}  Rc8 {[%clk 0:00:41]} 40. Rd7 {[%clk 0:00:07]}  Rb8 {[%clk 0:00:38]} 41. Rc7 {[%clk 0:00:07]}  Kf7 {[%clk 0:00:37]} 42. Rdd7 {[%clk 0:00:04]}  Ke6 {[%clk 0:00:26]} 43. Rxb7 {[%clk 0:00:04]}  Rf8 {[%clk 0:00:25]} 44. Rdc7 {[%clk 0:00:03]}  g5 {[%clk 0:00:24]} 45. b4 {[%clk 0:00:03]}  Re8 {[%clk 0:00:18]} 46. Rb6 {[%clk 0:00:04]}  Kd5 {[%clk 0:00:13]} 47. b5 {[%clk 0:00:04]}  Nd4 {[%clk 0:00:13]} 48. Rd7+ {[%clk 0:00:04]}  Kc5 {[%clk 0:00:12]} 49. Rxh6 {[%clk 0:00:05]}  Nd5 {[%clk 0:00:11]} 50. Rhd6 {[%clk 0:00:04]}  Nf4+ {[%clk 0:00:11]} 51. Kf1 {[%clk 0:00:04]}  Nf3 {[%clk 0:00:06]} 52. Rd1 {[%clk 0:00:04]}  Rh8 {[%clk 0:00:06]} 53. Rc7+ {[%clk 0:00:01]}  Kb4 {[%clk 0:00:05]} 54. Rc3 {[%clk 0:00:01]}  Rxh3 {[%clk 0:00:05]} 55. Rd4+ {[%clk 0:00:01]}  Kxb5 {[%clk 0:00:05]} 56. Re3 {[%clk 0:00:01]}  Rh1# {[%clk 0:00:04]} 0-1


[Site "https://www.chess.com"]

[Event "Titled Tuesday Blitz March 08 Late 2022"]
[White "Gaisinsky, Adam"]
[Black "Chyngyz, Sultai"]
[WhiteFideId "2620561"]
[BlackFideId "13803158"]
[WhiteElo "1965"]
[BlackElo "1365"]
[Result "0-1"]
[Round "03"]
[TimeControl "180+1"]
[Date "2022.03.09"]
[WhiteClock "0:00:07"]
[BlackClock "0:00:19"]

1. d4 {[%clk 0:02:57]}  Nf6 {[%clk 0:02:58]} 2. Nf3 {[%clk 0:02:57]}  g6 {[%clk 0:02:57]} 3. c4 {[%clk 0:02:58]}  Bg7 {[%clk 0:02:57]} 4. Nc3 {[%clk 0:02:58]}  O-O {[%clk 0:02:58]} 5. e4 {[%clk 0:02:58]}  d6 {[%clk 0:02:58]} 6. h3 {[%clk 0:02:59]}  e5 {[%clk 0:02:59]} 7. d5 {[%clk 0:02:59]}  a5 {[%clk 0:02:58]} 8. Be3 {[%clk 0:02:59]}  Na6 {[%clk 0:02:58]} 9. Nd2 {[%clk 0:02:57]}  b6 {[%clk 0:02:58]} 10. g4 {[%clk 0:02:30]}  Nc5 {[%clk 0:02:49]} 11. Qc2 {[%clk 0:02:20]}  Bd7 {[%clk 0:02:31]} 12. Be2 {[%clk 0:02:12]}  c6 {[%clk 0:02:29]} 13. O-O-O {[%clk 0:02:00]}  cxd5 {[%clk 0:02:27]} 14. cxd5 {[%clk 0:01:58]}  Rc8 {[%clk 0:02:21]} 15. Kb1 {[%clk 0:01:56]}  Na4 {[%clk 0:02:02]} 16. Nc4 {[%clk 0:01:49]}  Nxc3+ {[%clk 0:02:02]} 17. bxc3 {[%clk 0:01:48]}  Qc7 {[%clk 0:01:53]} 18. Ka1 {[%clk 0:01:15]}  Rb8 {[%clk 0:01:46]} 19. Nd2 {[%clk 0:00:47]}  b5 {[%clk 0:01:43]} 20. f3 {[%clk 0:00:39]}  a4 {[%clk 0:01:40]} 21. a3 {[%clk 0:00:34]}  Qa5 {[%clk 0:01:36]} 22. Rb1 {[%clk 0:00:31]}  Rfc8 {[%clk 0:01:35]} 23. Rhc1 {[%clk 0:00:29]}  Ne8 {[%clk 0:01:17]} 24. h4 {[%clk 0:00:26]}  Nc7 {[%clk 0:01:16]} 25. Qb2 {[%clk 0:00:21]}  Na6 {[%clk 0:01:11]} 26. h5 {[%clk 0:00:19]}  Rb7 {[%clk 0:00:55]} 27. hxg6 {[%clk 0:00:18]}  hxg6 {[%clk 0:00:53]} 28. Rc2 {[%clk 0:00:16]}  Rcb8 {[%clk 0:00:51]} 29. Bf1 {[%clk 0:00:16]}  Nc5 {[%clk 0:00:42]} 30. Qa2 {[%clk 0:00:08]}  Na6 {[%clk 0:00:28]} 31. c4 {[%clk 0:00:06]}  b4 {[%clk 0:00:27]} 32. axb4 {[%clk 0:00:03]}  Nxb4 {[%clk 0:00:26]} 33. Rxb4 {[%clk 0:00:03]}  Qxb4 {[%clk 0:00:25]} 34. Rc1 {[%clk 0:00:03]}  a3 {[%clk 0:00:21]} 35. c5 {[%clk 0:00:03]}  Qb2+ {[%clk 0:00:20]} 36. Qxb2 {[%clk 0:00:02]}  axb2+ {[%clk 0:00:21]} 37. Kb1 {[%clk 0:00:03]}  bxc1=Q+ {[%clk 0:00:21]} 38. Kxc1 {[%clk 0:00:04]}  dxc5 {[%clk 0:00:20]} 39. Nc4 {[%clk 0:00:04]}  Rb1+ {[%clk 0:00:19]} 40. Kc2 {[%clk 0:00:04]}  Rxf1 {[%clk 0:00:19]} 41. Bxc5 {[%clk 0:00:05]}  Rc8 {[%clk 0:00:18]} 42. Kd3 {[%clk 0:00:05]}  Rxc5 {[%clk 0:00:17]} 43. Ne3 {[%clk 0:00:06]}  Bb5+ {[%clk 0:00:17]} 44. Kd2 {[%clk 0:00:06]}  Rf2+ {[%clk 0:00:18]} 45. Ke1 {[%clk 0:00:06]}  Ra2 {[%clk 0:00:18]} 46. Kd1 {[%clk 0:00:06]}  Be2+ {[%clk 0:00:17]} 47. Ke1 {[%clk 0:00:07]}  Bxf3 {[%clk 0:00:18]} 48. Nd1 {[%clk 0:00:06]}  Rc1 {[%clk 0:00:18]} 49. Kf1 {[%clk 0:00:07]}  Rxd1# {[%clk 0:00:19]} 0-1


[Site "https://www.chess.com"]

[Event "Titled Tuesday Blitz March 08 Late 2022"]
[White "Goltseva, Ekaterina"]
[Black "Keymer, Vincent"]
[WhiteFideId "24173770"]
[BlackFideId "12940690"]
[WhiteElo "2140"]
[BlackElo "2557"]
[Result "0-1"]
[Round "03"]
[TimeControl "180+1"]
[Date "2022.03.08"]
[WhiteClock "0:00:01"]
[BlackClock "0:00:44"]

1. d4 {[%clk 0:03:00]}  Nf6 {[%clk 0:02:59]} 2. c4 {[%clk 0:03:01]}  e6 {[%clk 0:03:00]} 3. Nc3 {[%clk 0:03:01]}  Bb4 {[%clk 0:03:00]} 4. g3 {[%clk 0:02:58]}  O-O {[%clk 0:02:59]} 5. Bg2 {[%clk 0:02:57]}  d5 {[%clk 0:02:59]} 6. Nf3 {[%clk 0:02:57]}  dxc4 {[%clk 0:03:00]} 7. O-O {[%clk 0:02:57]}  Nc6 {[%clk 0:03:00]} 8. Qa4 {[%clk 0:02:57]}  Bd7 {[%clk 0:02:46]} 9. a3 {[%clk 0:02:40]}  Bxc3 {[%clk 0:02:36]} 10. bxc3 {[%clk 0:02:41]}  Nxd4 {[%clk 0:02:21]} 11. Qxc4 {[%clk 0:02:41]}  Nxf3+ {[%clk 0:02:17]} 12. Bxf3 {[%clk 0:02:41]}  Nd5 {[%clk 0:02:17]} 13. Rd1 {[%clk 0:02:35]}  Bc6 {[%clk 0:02:13]} 14. Bb2 {[%clk 0:01:58]}  Qe8 {[%clk 0:01:41]} 15. Qh4 {[%clk 0:01:44]}  Nb6 {[%clk 0:01:38]} 16. c4 {[%clk 0:01:30]}  f6 {[%clk 0:01:29]} 17. c5 {[%clk 0:01:08]}  Bxf3 {[%clk 0:01:13]} 18. cxb6 {[%clk 0:00:54]}  Bxe2 {[%clk 0:01:13]} 19. Re1 {[%clk 0:00:53]}  Qb5 {[%clk 0:01:07]} 20. Qb4 {[%clk 0:00:36]}  axb6 {[%clk 0:01:01]} 21. Qxb5 {[%clk 0:00:32]}  Bxb5 {[%clk 0:01:01]} 22. Rxe6 {[%clk 0:00:32]}  Rfe8 {[%clk 0:01:02]} 23. Rae1 {[%clk 0:00:25]}  Rxe6 {[%clk 0:01:02]} 24. Rxe6 {[%clk 0:00:26]}  Kf7 {[%clk 0:01:02]} 25. Re1 {[%clk 0:00:23]}  Rd8 {[%clk 0:01:03]} 26. Rc1 {[%clk 0:00:20]}  Bc6 {[%clk 0:00:58]} 27. Bc3 {[%clk 0:00:17]}  g5 {[%clk 0:00:57]} 28. h3 {[%clk 0:00:16]}  h5 {[%clk 0:00:57]} 29. Re1 {[%clk 0:00:14]}  Rd3 {[%clk 0:00:56]} 30. Bb4 {[%clk 0:00:14]}  Kg6 {[%clk 0:00:51]} 31. Kf1 {[%clk 0:00:13]}  Bf3 {[%clk 0:00:50]} 32. Rc1 {[%clk 0:00:09]}  c5 {[%clk 0:00:50]} 33. Be1 {[%clk 0:00:09]}  Bd5 {[%clk 0:00:46]} 34. Rb1 {[%clk 0:00:09]}  Bb3 {[%clk 0:00:45]} 35. Ke2 {[%clk 0:00:08]}  Bc4 {[%clk 0:00:45]} 36. Rc1 {[%clk 0:00:01]}  Ba6 {[%clk 0:00:44]} 0-1


[Site "https://www.chess.com"]